Cogmind - Beta 14 --- EXPLORER MODE // 2024.10.24 @ 19:11:11 Player: viper Result: Destroyed by H-55 Commando with Assault Rifle Performance ------------- Evolutions (0) 0 Regions Visited (3) 600 Robots Destroyed (26) 130 Value Destroyed (823) 823 Prototype IDs (23) 460 Alien Tech Used (0) 0 Bonus (300) 300 TOTAL SCORE: 2313 Bonus ------- Aligned with FarCom 300 Cogmind --------- Core Integrity 0/250 Matter 290/300 Energy 100/100 System Corruption 3% Temperature Cool (0) Movement Core (550) Ox10 Location -10/Exiles Parts ------- > --- POWER (1) -------- (None) > --- PROPULSION (2) --- (None) > --- UTILITY (3) ------ Large Storage Unit Targeting Computer PSU Rigger > --- WEAPON (2) ------- AWS/Gauss > --- INVENTORY (15) --- Ion Engine Light Ion Engine Improved Ion Engine Terrain Scanner Core Shielding Propulsion Shielding Assault Rifle Assault Rifle Assault Rifle Light Assault Rifle Heavy Assault Rifle Mining Laser Peak State ------------ > --- POWER ------------ Improved Ion Engine > --- PROPULSION ------- Aluminum Leg > --- UTILITY ---------- Large Storage Unit Targeting Computer PSU Rigger > --- WEAPON ----------- AWS/Gauss > --- INVENTORY -------- Ion Engine Light Ion Engine Improved Ion Engine Terrain Scanner Core Shielding Propulsion Shielding Assault Rifle Assault Rifle Assault Rifle Light Assault Rifle Heavy Assault Rifle Mining Laser [Rating: 30] Favorites ----------- Power Improved Ion Engine Engine Improved Ion Engine Propulsion Aluminum Leg Leg Aluminum Leg Utility Targeting Computer Device PSU Rigger Storage Large Storage Unit Processor Targeting Computer Weapon Assault Rifle Ballistic Gun Assault Rifle Special Weapon Mining Laser Build | -11 -10 -10 -10 ------- Run | Yrd Mat Min Exi Slots Evolved 1 | . 1 . . Power . | . . . . Propulsion . | . . . . Utility 1 | . 1 . . Weapon . | . . . . Parts Attached 15 | 7 3 2 3 Power 2 | 1 . 1 . Engine 2 | 1 . 1 . Core . | . . . . Reactor . | . . . . Propulsion 3 | 2 . . 1 Treads . | . . . . Leg 3 | 2 . . 1 Wheel . | . . . . Hover . | . . . . Flight . | . . . . Utility 5 | 2 1 1 1 Device 1 | . . . 1 Storage 2 | 1 . 1 . Processor 2 | 1 1 . . Hackware . | . . . . Protection . | . . . . Artifact . | . . . . Weapon 5 | 2 2 . 1 Energy Gun . | . . . . Energy Cannon . | . . . . Ballistic Gun 4 | 2 1 . 1 Ballistic Cannon . | . . . . Launcher . | . . . . Special Weapon 1 | . 1 . . Impact Weapon . | . . . . Slashing Weapon . | . . . . Piercing Weapon . | . . . . Special Melee Weapon . | . . . . Unidentified Prototypes 1 | . . . 1 Parts Lost 5 | . . . 5 Power 1 | . . . 1 Propulsion 3 | . . . 3 Utility 1 | . . . 1 Weapon . | . . . . Highest Loss Streak 5 | . . . 5 To Critical Strikes 2 | . . . 2 Average Slot Usage (%) 96 | . 100 100 92 Engine 11 | . 12 12 11 Leg 24 | . 25 25 24 Storage 12 | . 12 12 12 Processor 24 | . 25 25 24 Ballistic Gun 21 | . 20 25 18 Peak Build Rating 30 | 7 8 10 30 Average Rating 11 | 5 8 8 17 On Entrance 6 | . 7 8 10 Naked Turns . | . . . . Heaviest Build 39 | 19 19 31 39 Greatest Support 20 | 20 20 20 20 Greatest Overweight (x) 10 | 6 . 1 10 Average Overweight (x) . | 1 . . 1 Largest Inventory Capacity 15 | 10 10 15 15 Average Capacity 14 | 9 10 14 15 Most Carried 15 | 5 9 12 15 Average Carried 10 | 1 6 10 12 Final Capacity 15 | 10 10 15 15 Final Carried 12 | 5 9 12 12 Class Distribution -------------------- 100% | Hacker-Mutant Dominant Class ---------------- Hacker-Mutant | -10/Materials Hacker-Mutant | -10/Mines Hacker-Mutant | -10/Exiles Resources | -11 -10 -10 -10 ----------- Run | Yrd Mat Min Exi Matter Collected 438 | 207 73 131 27 Remotely . | . . . . Salvage Created 1018 | . . 190 828 Parts 52 | . . 15 37 Haulers Intercepted . | . . . . Recyclers Shooed 1 | . . 1 . Parts Field Recycled . | . . . . Retrieved Matter . | . . . . Parts Self-Destructed . | . . . . Prevented . | . . . . Kills | -11 -10 -10 -10 ------- Run | Yrd Mat Min Exi Combat Hostiles Destroyed 25 | . . 6 19 Guns 25 | . . 6 19 Classes Destroyed 7 | . . 2 5 Recycler 1 | . . 1 . Swarmer 6 | . . 6 . Grunt 12 | . . . 12 Brawler 2 | . . . 2 Duelist 1 | . . . 1 Hunter 2 | . . . 2 Programmer 2 | . . . 2 Best Kill Streak 18 | . . 4 18 Combat Bots Only 18 | . . 4 18 Max Kills in Single Turn 1 | . . 1 1 Gunslinging . | . . . . Exploded . | . . . . Melee . | . . . . Uniques/NPCs Destroyed . | . . . . Combat | -11 -10 -10 -10 -------- Run | Yrd Mat Min Exi Hostile Shots Fired 184 | . . 26 158 Missed 63 | . . 11 52 Damage Taken 1066 | . . 70 996 Core 250 | . . 12 238 Absorbed by Shields . | . . . . Ignored by Resistances 656 | . . 53 603 Core Remaining (%) 100 | 100 . . . Volleys Fired 18 | . 5 13 . Largest 2 | . 1 2 . Hottest 100 | . 100 40 . Shots Fired 89 | . 5 27 57 Gun 84 | . . 27 57 Cannon . | . . . . Launcher . | . . . . Special 5 | . 5 . . Kinetic 84 | . . 27 57 Thermal 5 | . 5 . . Explosive . | . . . . Electromagnetic . | . . . . Robot Hit Streak 26 | . . 8 26 Robot Miss Streak 1 | . . 1 1 Penetration Max . | . . . . Secondary Targets 2 | . . 2 . Max Gunslinging Chain 1 | . . 1 . Autonomous 57 | . . . 57 Shots Hit Robots 74 | . . 20 54 Core Hits 31 | . . 8 23 Critical Kills 1 | . . . 1 Critical Parts Destroyed . | . . . . Critical Strikes 1 | . . . 1 Destroy 1 | . . . 1 Melee Attacks . | . . . . Impact . | . . . . Slashing . | . . . . Piercing . | . . . . Sneak Attacks . | . . . . Combat Hostiles . | . . . . Follow-up Attacks . | . . . . Damage Inflicted 2186 | . . 223 1963 Guns 2186 | . . 223 1963 Cannons . | . . . . Explosions . | . . . . Melee . | . . . . Ramming . | . . . . Kinetic 2186 | . . 223 1963 Thermal . | . . . . Explosive . | . . . . Electromagnetic . | . . . . Impact . | . . . . Slashing . | . . . . Piercing . | . . . . Highest Corruption 3 | . 1 1 3 Average Corruption 1 | . 1 1 1 Corruption Purged . | . . . . Corruption Blocked . | . . . . Effects 11 | . . 3 8 Message Errors 4 | . . . 4 Matter Fused 3 | . . 1 2 Heat Flow Errors 3 | . . 1 2 Misfires 1 | . . 1 . Overload Shots . | . . . . Overflow Damage . | . . . . Projectiles . | . . . . Explosions . | . . . . Melee . | . . . . Knockbacks . | . . . . Impact . | . . . . Kinetic . | . . . . Secondary . | . . . . Self-Inflicted Damage . | . . . . Shots . | . . . . Rammed . | . . . . Targets Rammed . | . . . . Kicked . | . . . . Crushed . | . . . . Highest Temperature 201 | . 42 96 201 Average Temperature 46 | . 18 41 87 Received Heat Transfer 78 | . . . 78 Siege Activations . | . . . . Robots Corrupted . | . . . . Combat Hostiles . | . . . . Parts Fried . | . . . . Impact Corruptions . | . . . . Robots Melted . | . . . . Combat Hostiles . | . . . . Parts Melted . | . . . . Heat Transferred . | . . . . Parts Sabotaged . | . . . . Parts Stolen . | . . . . Parts Stripped . | . . . . Power Chain Reactions . | . . . . Alert | -11 -10 -10 -10 ------- Run | Yrd Mat Min Exi Peak Influence 115 | . 5 115 . Initial 1 | . . 1 . Average 32 | . 3 42 . Maximum Alert Level . | . . . . Low Security (%) 100 | 100 100 100 . Level 1 . | . . . . Level 2 . | . . . . Level 3 . | . . . . Level 4 . | . . . . Level 5 . | . . . . High Security . | . . . . Max Security . | . . . . Squads Dispatched . | . . . . Investigation . | . . . . Extermination . | . . . . Reinforcement . | . . . . Assault . | . . . . Garrison . | . . . . Intercept . | . . . . Searches Triggered . | . . . . Construction Impeded . | . . . . Haulers Reinforced . | . . . . Active Scanning Responses . | . . . . Cargo Convoy Interrupts . | . . . . Stealth | -11 -10 -10 -10 --------- Run | Yrd Mat Min Exi Distress Signals . | . . . . Communications Jammed . | . . . . Distress Signals . | . . . . Times Spotted 33 | . . 7 26 Peak Tracking Total 23 | . . 2 23 Tactical Retreats . | . . . . Traps | -11 -10 -10 -10 ------- Run | Yrd Mat Min Exi Traps Triggered . | . . . . Indirectly . | . . . . Trap Hack Attempts . | . . . . Triggered . | . . . . Disarmed . | . . . . Reprogrammed . | . . . . Reused . | . . . . Traps Extracted . | . . . . Installed . | . . . . Triggered . | . . . . Machines | -11 -10 -10 -10 ---------- Run | Yrd Mat Min Exi Machines Disabled 3 | . . . 3 Max in Single Turn 1 | . . . 1 Machines Repaired . | . . . . Machines Dismantled . | . . . . Machines Sabotaged . | . . . . Overloaded Fab Kills . | . . . . Hacking | -11 -10 -10 -10 --------- Run | Yrd Mat Min Exi Machines Accessed 5 | . 1 . 4 Terminals 1 | . 1 . . Fabricators . | . . . . Repair Stations . | . . . . Recycling Units . | . . . . Scanalyzers . | . . . . Garrison Access . | . . . . Total Hacks 30 | . 3 . 27 Successful 30 | . 3 . 27 Failed . | . . . . Catastrophic . | . . . . Database Lockouts . | . . . . Manual 4 | . . . 4 Terminals 3 | . 3 . . Fabricators . | . . . . Repair Stations . | . . . . Recycling Units . | . . . . Scanalyzers . | . . . . Garrison Access . | . . . . Terminal Hacks 30 | . 3 . 27 Record 28 | . 2 . 26 Locate Traps 1 | . 1 . . Derelict Proto ID Bank 1 | . . . 1 Fabricator Hacks . | . . . . Repair Station Hacks . | . . . . Recycling Unit Hacks . | . . . . Scanalyzer . | . . . . Garrison Access Hacks . | . . . . Unauthorized Hacks . | . . . . Terminals . | . . . . Fabricators . | . . . . Repair Stations . | . . . . Recycling Units . | . . . . Scanalyzers . | . . . . Garrison Access . | . . . . Data Cores Recovered . | . . . . Used . | . . . . Hacking Detections 1 | . 1 . . Full Trace Events 1 | . 1 . . Feedback Events 1 | . 1 . . Corruption 1 | . 1 . . Feedback Blocked . | . . . . Robot Schematics Acquired . | . . . . Robots Built . | . . . . Authchips . | . . . . Time . | . . . . Total Robot Build Rating . | . . . . Part Schematics Acquired . | . . . . Parts Built . | . . . . Authchips . | . . . . Time . | . . . . Total Part Build Rating . | . . . . Parts Repaired . | . . . . Time . | . . . . Parts Recycled . | . . . . Recycled Matter . | . . . . Retrieved Matter . | . . . . Retrieved Components . | . . . . Parts Scanalyzed . | . . . . Part Schematics Acquired . | . . . . Parts Damaged . | . . . . Bothacking | -11 -10 -10 -10 ------------ Run | Yrd Mat Min Exi Used RIF Installer . | . . . . Robots Hacked . | . . . . Non-combat . | . . . . Combat . | . . . . Robot Hacks Applied . | . . . . Relay Couplers Released . | . . . . Fabnet Peak Effective % . | . . . . Robots Rewired . | . . . . Allies Hacked . | . . . . Hacks Repelled . | . . . . Allies | -11 -10 -10 -10 -------- Run | Yrd Mat Min Exi Total Allies . | . . . . Largest Group . | . . . . Highest-Rated Group . | . . . . Highest-Rated Ally . | . . . . Total Orders . | . . . . Ally Attacks . | . . . . Total Damage . | . . . . Kills . | . . . . Allies Corrupted . | . . . . Allies Melted . | . . . . Intel | -11 -10 -10 -10 ------- Run | Yrd Mat Min Exi Robot Analysis Total . | . . . . Derelict Logs Recovered . | . . . . Drone Launches . | . . . . Drone Recoveries . | . . . . Exploration | -11 -10 -10 -10 ------------- Run | Yrd Mat Min Exi Turns Passed 1575 | 91 136 715 633 Spaces Moved 809 | 56 90 357 306 Core 30 | 27 . . 3 Treads . | . . . . Legs 779 | 29 90 357 303 Wheels . | . . . . Hover . | . . . . Flight . | . . . . Fastest Speed 50 | 50 120 120 190 Average Speed 179 | 136 120 188 195 Slowest Speed 550 | 350 120 190 550 Overloaded Moves . | . . . . Propulsion Burnouts . | . . . . Robots Hopped . | . . . . Cave-ins Triggered . | . . . . Exploration Rate (%) 37 | 5 25 74 45 Regions Visited 3 Branch Regions 2 Pre-discovered Areas . | . . . . Known Exits Taken 3 | 1 1 1 . Unknown Exits Taken . | . . . . Scrap Searched . | . . . . Spaces Dug 5 | . 5 . . Terrain Destroyed 15 | . 5 . 10 Melee . | . . . . Projectile 15 | . 5 . 10 AOE . | . . . . Terrain Rammed . | . . . . Walls Destroyed . | . . . . Machines Disabled . | . . . . Actions | -11 -10 -10 -10 --------- Run | Yrd Mat Min Exi Total 888 | 67 102 374 345 Wait 3 | . . . 3 Move 806 | 55 89 356 306 Hop . | . . . . Pick Up 15 | 5 5 2 3 Fast Attach 8 | 7 . . 1 Attach 3 | . 1 . 2 Detach 2 | . . . 2 Swap 4 | . 2 2 . Drop 4 | . . 1 3 Fire 18 | . 5 13 . Melee . | . . . . Ram . | . . . . Kick . | . . . . Crush . | . . . . Escape Stasis . | . . . . Rewire 25 | . . . 25 Trap . | . . . . Miscellaneous . | . . . . Route ------- -11/Scrapyard -10/Materials -10/Mines (discovered 3 exits: *Mat x2 / *Exi) -10/Exiles History --------- Turn | Location | Event 37 | -11/Scrapyard | Identified exit to Materials 37 | -11/Scrapyard | Discovered exit to Materials (range 15) 92 | -11/Scrapyard | Entered Materials 92 | -10/Materials | Evolved 1 slot: Utility x1 217 | -10/Materials | Identified exit to Mines 217 | -10/Materials | Discovered exit to Mines (range 6) 228 | -10/Materials | Entered Mines 300 | -10/Mines | Build established: Hacker-Mutant 405 | -10/Mines | Identified exit to Materials 405 | -10/Mines | Discovered exit to Materials (range 8) 642 | -10/Mines | Joined a pair of Derelicts in attacking an 0b10 outpost 742 | -10/Mines | Discovered exit to Materials (range 5) 935 | -10/Mines | Deemed a non-threat by the Exiles lab entrance 935 | -10/Mines | Identified exit to Exiles 935 | -10/Mines | Discovered exit to Exiles (range 5) 943 | -10/Mines | Entered Exiles 1004 | -10/Exiles | Met 8R-AWN 1031 | -10/Exiles | Met EX-HEX 1143 | -10/Exiles | Met EX-BIN 1189 | -10/Exiles | Aligned with FarCom system 1191 | -10/Exiles | Given EX-Vault access code 1253 | -10/Exiles | Opened EX-Vault 1259 | -10/Exiles | Found Prototype Ballistic Gun 1266 | -10/Exiles | Found Prototype Device 1270 | -10/Exiles | Identified AWS/Gauss 1285 | -10/Exiles | Identified PSU Rigger 1337 | -10/Exiles | Exiles lab attacked by MAIN.C 1562 | -10/Exiles | Core integrity fell below 50% 1573 | -10/Exiles | Core integrity fell below 20% 1576 | -10/Exiles | Destroyed by H-55 Commando with Assault Rifle Last Messages --------------- 01564_ Slug penetrates H-55 Commando. 01565_ Slug penetrates B-36 Bruiser. 01565_ Slug penetrates H-55 Commando. 01566_ Penetrated by Slug. 01566_ Machine disabled. 01566_ P-60 Hacker resets B-36 Bruiser, system corruption cleaned. 01566_ Slug penetrates B-36 Bruiser. 01567_ B-36 Bruiser destroyed. 01568_ Penetrated by Slug. 01569_ H-55 Commando destroyed. 01570_ Penetrated by Slug. 01570_ Slug penetrates G-34 Mercenary. 01571_ G-34 Mercenary destroyed. 01572_ Slug penetrates Earth. 01573_ Slug penetrates P-60 Hacker. 01574_ Penetrated by Slug. 01575_ H-55 Commando destroyed. 01575_ Penetrated by Slug. 01575_ Slug penetrates H-55 Commando. Map ----- +----------------------------------------------------+ | ???????"""?????## ###"" """"#????????????????? | | ???????????????#" """"#????????????????? | | ???????????????#" """#????????????????? | | ???????????????#" """#????????????????? | | ???????????????#" """#????????????????? | | ???????????????#" """#????????????????? | | ???????????????#" """## ??????????????? | | ???????????????## """"""??????????????? | | ????????????????# """######???????????? | | ????????????????#" "X" """"" #???????????? | | ????????????????#" """ # "??????????????? | | ????????????????#" """""""""#????????????????? | | ???????????????##" ###########????????????????? | | ??????????????##" #??????????????????????????? | | ?????????######"" #??????????????????????????? | | ?????????#"""""""[ ##?????????????????????????? | | ???????""""" " "%= ##???###########??????????? | | ???? "" """ " ! #####"""""""""##?????????? | | ? " " " """ """"##????????? | | ? "" " #????????? | | ? h = " """#????????? | | ? =%p*p[ % "a"#????????? | | ? =[[!==[ " "##???????? | | ?? [=!**!h=%/ ""###?????? | | ?? *%%==%/=%= """#?????? | | ??? ==[%=[*%!"##; @ "#????## | | ??? /%* [ =#=## ##;##"" ##???# | | ??? " "????# ?#####""" ##?## | | ???? !%""#?????# ?????#"""" ### | | ???? ?""??????##?????#"" | | ????? ??????????????###"""" | | ????????????????????""" | | ???????????????????"" #"" | | ????????????????? #### | | ????????????????? ##??? | | ?????????????????? " ##???? | | ?????????????????? "" """ ""#????? | | ??????????????????? ??""" " " ""#" "##????? | | ??????????????????????####""" """##"""""""##?????? | | ?????????????????????????###""""###########??????? | | ???????????????????????????#####?????????????????? | | ?????????????????????????????????????????????????? | | ?????????????????????????????????????????????????? | | ?????????????????????????????????????????????????? | | ?????????????????????????????????????????????????? | | ?????????????????????????????????????????????????? | | ?????????????????????????????????????????????????? | | ?????????????????????????????????????????????????? | | ?????????????????????????????????????????????????? | | ?????????????????????????????????????????????????? | +----------------------------------------------------+ Best States ------------- Heat Dissipation 25 Energy Generation 12 Energy Capacity 265 Matter Stores 300 Matter Capacity 300 Sight Range 16 Terrain Scan Density 10 Resistance: KI 35 Resistance: TH 35 Resistance: EX 35 Resistance: EM 35 Resistance: I 35 Resistance: S 35 Resistance: P 35 Evasion (%) 55 Targeting Accuracy 10 Offensive Hacking 20 Item Schematics ----------------- None Robot Schematics ------------------ None Fabricated ------------ Nothing Alien Tech Used ----------------- None Achievements -------------- None Challenges ------------ None Game ------ Seed AssembledScatterStatue Manual? 0 Play Time 00:17:36 Cumulative 1781.4 hours Start 2024.10.24 @ 18:55:32 End 2024.10.24 @ 19:11:11 Sessions 1 Manual Loads 0 Difficulty Explorer Special Mode None Game No. 985 Rogue 62 Adventurer 0 Explorer 923 Win Type - Total 11 Types 11/0/0/0/0/0/0/0/0 Lore% 44 Gallery% 76 Achievement% 63 Wizard Run 0 Options --------- Layout 1 ASCII 0 Keyboard 0 Movement Mouse Keybinds 0 Fullscreen 1 Font 48/Smallcaps Map View 55x35 Zoom Use 0% Tactical HUD 1 Map Filters NONE Filters NONE Steam 1 RUN: 2a435c92-22b3-44c7-883c-80fbdff08ee2